fUSD/lending_fUSD_20241223
["ID","MTS","AMOUNT","RATE_DAILY","PERIOD"]
[346382945,1734929448552,-614.0,0.00019452,2]
[346382946,1734929448562,-500.0,0.00019452,2]
[346382947,1734929448571,-2364.53,0.00019452,2]
[346382948,1734929448580,-2509.49,0.00019452,2]
[346382949,1734929448590,-299.62797059,0.00019452,2]
[346382950,1734929448599,-9564.7,0.00019452,2]
[346382951,1734929448609,-1029.63,0.00019452,2]
[346382952,1734929448618,-643.72,0.00019452,2]
[346382953,1734929448628,-960.26,0.00019452,2]
[346382954,1734929448637,-1842.84,0.00019452,2]
[346382955,1734929448647,-529.34,0.00019452,2]
[346382956,1734929448656,-1151.27,0.00019452,2]
[346382957,1734929448666,-500.0,0.00019452,2]
[346382958,1734929448676,-4289.08,0.00019452,2]
[346382959,1734929448686,-2603.62,0.00019452,2]
[346382960,1734929448695,-3831.58,0.00019452,2]
[346382961,1734929448706,-1699.22,0.00019452,2]
[346382962,1734929448716,-569.82,0.00019452,2]
[346382963,1734929448726,-3434.16,0.00019452,2]
[346382964,1734929448736,-500.0,0.00019452,2]
[346382965,1734929448746,-6411.85,0.00019452,2]
[346382966,1734929448756,-500.0,0.00019452,2]
[346382967,1734929448765,-18071.75,0.00019452,2]
[346382968,1734929448774,-500.0,0.00019452,2]
[346382969,1734929448784,-1310.1,0.00019452,2]
[346382970,1734929448793,-645.85,0.00019452,2]
[346382971,1734929448804,-500.0,0.00019452,2]
[346382972,1734929448814,-500.0,0.00019452,2]
[346382973,1734929448824,-500.0,0.00019452,2]
[346382974,1734929448834,-2013.3,0.00019452,2]
[346382975,1734929448843,-500.0,0.00019452,2]
[346382976,1734929448852,-646.48,0.00019452,2]
[346382977,1734929448862,-511.9957363,0.00019452,2]
[346382978,1734929448872,-863.09,0.00019452,2]
[346382979,1734929448881,-679.34,0.00019452,2]
[346382980,1734929448891,-852.6,0.00019452,2]
[346382981,1734929448900,-960.25,0.00019452,2]
[346382982,1734929448910,-1675.68,0.00019452,2]
[346382983,1734929448920,-6530.102,0.00019471,2]
[346382984,1734929448930,-276.571,0.00019471,2]
[346382985,1734929448939,-5800.0,0.00019491,2]
[346382986,1734929448948,-5800.0,0.000195,2]
[346382987,1734929448958,-38092.41599452,0.000195,2]
[346382988,1734929448967,-1632.0,0.000195,2]
[346382989,1734929448982,-150.0,0.000195,4]
[346382990,1734929448991,-1425.7851086,0.000195,2]
[346382991,1734929449000,-218.47386163,0.000195,2]
[346382992,1734929449010,-231.90716572,0.000195,2]
[346382993,1734929449020,-209.0,0.0001951,2]
[346382994,1734929449030,-205.0,0.0001951,2]
[346382995,1734929449039,-209.0,0.0001951,2]
[346382996,1734929449049,-203.0,0.0001951,2]
[346382997,1734929449059,-1000.0,0.00019521,2]
[346382998,1734929449069,-570.77747343,0.00019522,2]
[346382999,1734929449078,-500.0,0.00019573,2]
[346383000,1734929449088,-502.28280265,0.00019573,2]
[346383001,1734929449097,-500.0,0.00019573,2]
[346383002,1734929449107,-4000.0,0.0001959,2]
[346383003,1734929449116,-150.42,0.00019594,2]
[346383004,1734929449126,-222.122313,0.00019597,2]
[346383005,1734929449136,-222.122313,0.00019597,2]
[346383006,1734929449146,-222.122313,0.00019597,2]
[346383007,1734929449156,-222.122313,0.00019597,2]
[346383008,1734929449166,-222.122313,0.00019597,2]
[346383009,1734929449176,-222.122313,0.00019597,3]
[346383010,1734929449185,-222.122313,0.00019597,3]
[346383011,1734929449195,-222.122313,0.00019597,3]
[346383012,1734929449204,-222.122313,0.00019597,3]
[346383013,1734929449214,-222.122313,0.00019597,3]
[346383014,1734929449224,-333.122313,0.00019598,3]
[346383015,1734929449233,-333.122313,0.00019598,3]
[346383016,1734929449243,-333.122313,0.00019598,3]
[346383017,1734929449253,-333.122313,0.00019598,3]
[346383018,1734929449264,-333.122313,0.00019598,3]
[346383019,1734929449273,-333.122313,0.00019598,2]
[346383020,1734929449284,-333.122313,0.00019598,2]
[346383021,1734929449294,-333.122313,0.00019598,2]
[346383022,1734929449303,-333.122313,0.00019598,2]
[346383023,1734929449315,-333.122313,0.00019598,2]
[346383024,1734929449325,-705.19,0.00019599,2]
[346383025,1734929449334,-3635.33,0.00019599,2]
[346383026,1734929449345,-2743533.98089065,0.000196,2]
[346383027,1734929449354,-20001.0,0.000196,2]
[346383028,1734929449364,-1502.21145756,0.000196,2]
[346383029,1734929449374,-1000.0,0.000196,2]
[346383030,1734929449383,-1000.0,0.000196,2]
[346383031,1734929449393,-1000.0,0.000196,2]
[346383032,1734929449402,-1000.0,0.000196,2]
[346383033,1734929449412,-1000.0,0.000196,2]
[346383034,1734929449421,-1000.0,0.000196,2]
[346383035,1734929449431,-1000.0,0.000196,2]
[346383036,1734929449441,-1000.0,0.000196,2]
[346383037,1734929449450,-1000.0,0.000196,2]
[346383038,1734929449459,-1000.0,0.000196,2]
[346383039,1734929449468,-1000.0,0.000196,2]
[346383040,1734929449478,-1000.0,0.000196,2]
[346383041,1734929449487,-1000.0,0.000196,2]
[346383042,1734929449496,-1000.0,0.000196,2]
[346383043,1734929449506,-1000.0,0.000196,2]
[346383044,1734929449516,-1000.0,0.000196,2]
[346383045,1734929449525,-1000.0,0.000196,2]
[346383046,1734929449534,-1000.0,0.000196,2]
[346383047,1734929449544,-1000.0,0.000196,2]
[346383048,1734929449553,-1000.0,0.000196,2]
[346383049,1734929449562,-1000.0,0.000196,2]
[346383050,1734929449572,-1000.0,0.000196,2]
[346383051,1734929449581,-1000.0,0.000196,2]
[346383052,1734929449591,-1000.0,0.000196,2]
[346383053,1734929449605,-1000.0,0.000196,2]
[346383054,1734929449619,-1000.0,0.000196,2]
[346383055,1734929449629,-1000.0,0.000196,2]
[346383056,1734929449639,-1000.0,0.000196,2]
[346383057,1734929449649,-1000.0,0.000196,2]
[346383058,1734929449658,-1000.0,0.000196,2]
[346383059,1734929449668,-1000.0,0.000196,2]
[346383060,1734929449677,-1000.0,0.000196,2]
[346383061,1734929449687,-1000.0,0.000196,2]
[346383062,1734929449696,-220.30642425,0.000196,2]
[346383063,1734929449707,-2000.0,0.000196,2]
[346383064,1734929449718,-10000.0,0.000196,2]
[346383065,1734929449729,-4712.63,0.000196,2]
[346383066,1734929449739,-300.0,0.000196,7]
[346383067,1734929449748,-250.0,0.000196,4]
[346383068,1734929449758,-250.0,0.000196,7]
[346383069,1734929449767,-200.0,0.000196,2]
[346383070,1734929449776,-150.0,0.000196,4]
[346383071,1734929449786,-570.77747343,0.000196,2]
[346383072,1734929449795,-152.0,0.00019604,4]
[346383073,1734929449804,-177.08806774,0.00019626,2]
[346383074,1734929449815,-500.0,0.00019635,2]
[346383075,1734929449824,-500.0,0.00019635,2]
[346383076,1734929449833,-1179.31,0.00019635,2]
[346383077,1734929449843,-642.16,0.00019635,2]
[346383078,1734929449852,-500.0,0.00019635,2]
[346383079,1734929449861,-513.41,0.00019635,2]
[346383080,1734929449870,-500.0,0.00019635,2]
[346383081,1734929449879,-1315.35,0.00019635,2]
[346383082,1734929449888,-799.93,0.00019635,2]
[346383083,1734929449897,-1282.06,0.00019635,2]
[346383084,1734929449906,-500.0,0.00019635,2]
[346383085,1734929449915,-535.91,0.00019635,2]
[346383086,1734929449925,-500.0,0.00019635,2]
[346383087,1734929449934,-500.0,0.00019635,2]
[346383088,1734929449943,-661.93,0.00019635,2]
[346383089,1734929449953,-500.0,0.00019635,2]
[346383090,1734929449962,-740.62,0.00019635,2]
[346383091,1734929449973,-909.45,0.00019635,2]
[346383092,1734929449984,-500.0,0.00019635,2]
[346383093,1734929449993,-500.0,0.00019635,2]
[346383094,1734929450003,-500.0,0.00019635,2]
[346383095,1734929450012,-500.0,0.00019635,2]
[346383096,1734929450022,-415.5,0.00019671,7]
[346383097,1734929450031,-501.86337536,0.00019673,2]
[346383098,1734929450040,-251.01,0.00019688,2]
[346383099,1734929450052,-935357.3440451,0.000197,2]
[346383100,1734929450063,-1425.78510859,0.000197,2]
[346383101,1734929450072,-231.90716572,0.000197,2]
[346383102,1734929450081,-20751.84134472,0.00019725,2]
[346383103,1734929450090,-1080.62301612,0.00019725,2]
[346383104,1734929450255,-1962.940736,0.00019726,2]
[346383105,1734929450266,-500.0,0.00019726,2]
[346383106,1734929450275,-2141.220525,0.00019726,2]
[346383107,1734929450285,-500.0,0.00019726,2]
[346383108,1734929450295,-516.14,0.00019726,2]
[346383109,1734929450304,-500.0,0.00019726,2]
[346383110,1734929450315,-509.4615212,0.00019726,2]
[346383111,1734929450325,-500.0,0.00019726,2]
[346383112,1734929450335,-500.0,0.00019726,2]
[346383113,1734929450346,-500.0,0.00019726,2]
[346383114,1734929450355,-500.0,0.00019726,2]
[346383115,1734929450365,-500.0,0.00019726,2]
[346383116,1734929450375,-500.0,0.00019726,2]
[346383117,1734929450384,-500.0,0.00019726,2]
[346383118,1734929450393,-513.22888101,0.00019726,2]
[346383119,1734929450402,-500.0,0.00019726,2]
[346383120,1734929450411,-500.0,0.00019726,2]
[346383121,1734929450421,-500.0,0.00019726,2]
[346383122,1734929450430,-500.0,0.00019726,2]
[346383123,1734929450440,-500.0,0.00019726,2]
[346383124,1734929450449,-1575.02,0.00019726,2]
[346383125,1734929450459,-500.0,0.00019726,2]
[346383126,1734929450468,-500.0,0.00019726,2]
[346383127,1734929450478,-500.0,0.00019726,2]
[346383128,1734929450488,-500.0,0.00019726,2]
[346383129,1734929450498,-2000.0,0.00019726,15]
[346383130,1734929450508,-500.0,0.00019726,2]
[346383131,1734929450517,-500.0,0.00019726,2]
[346383132,1734929450526,-500.0,0.00019726,2]
[346383133,1734929450536,-500.0,0.00019726,2]
[346383134,1734929450545,-506.28760414,0.00019726,2]
[346383135,1734929450555,-336.02650029,0.00019726,2]
[346383136,1734929450566,-500.0,0.00019726,2]
[346383137,1734929450576,-500.0,0.00019726,2]
[346383138,1734929450585,-500.0,0.00019726,2]
[346383139,1734929450596,-500.0,0.00019726,2]
[346383140,1734929450606,-500.0,0.00019726,2]
[346383141,1734929450616,-920.19,0.00019726,2]
[346383142,1734929450626,-500.0,0.00019726,2]
[346383143,1734929450636,-891.63,0.00019726,2]
[346383144,1734929450646,-500.0,0.00019726,2]
[346383145,1734929450655,-946.59,0.00019726,2]
[346383146,1734929450665,-380.67641698,0.00019726,2]
[346383147,1734929450674,-557.13,0.00019726,2]
[346383148,1734929450684,-1046.07,0.00019726,2]
[346383149,1734929450694,-500.0,0.00019726,2]
[346383150,1734929450704,-500.0,0.00019726,2]
[346383151,1734929450714,-500.0,0.00019726,2]
[346383152,1734929450723,-500.0,0.00019726,2]
[346383153,1734929450733,-500.0,0.00019726,2]
[346383154,1734929450742,-922.13,0.00019726,2]
[346383155,1734929450752,-509.12568703,0.00019726,2]
[346383156,1734929450761,-500.0,0.00019726,2]
[346383157,1734929450771,-500.0,0.00019726,2]
[346383158,1734929450780,-500.0,0.00019726,2]
[346383159,1734929450790,-668.52,0.00019726,2]
[346383160,1734929450799,-500.0,0.00019726,2]
[346383161,1734929450808,-893.39,0.00019726,2]
[346383162,1734929450819,-500.49,0.00019726,2]
[346383163,1734929450828,-500.0,0.00019726,2]
[346383164,1734929450837,-500.0,0.00019726,2]
[346383165,1734929450846,-500.0,0.00019726,2]
[346383166,1734929450855,-500.0,0.00019726,2]
[346383167,1734929450864,-500.0,0.00019726,2]
[346383168,1734929450873,-500.0,0.00019726,2]
[346383169,1734929450882,-500.0,0.00019726,2]
[346383170,1734929450892,-500.0,0.00019726,2]
[346383171,1734929450901,-500.0,0.00019726,2]
[346383172,1734929450910,-500.0,0.00019726,2]
[346383173,1734929450919,-529.21,0.00019726,2]
[346383174,1734929450929,-500.0,0.00019726,2]
[346383175,1734929450938,-569.25629171,0.00019726,2]
[346383176,1734929450947,-500.0,0.00019726,2]
[346383177,1734929450956,-500.0,0.00019726,2]
[346383178,1734929450965,-1053.24,0.00019726,2]
[346383179,1734929450977,-500.0,0.00019726,2]
[346383180,1734929450986,-659.76,0.00019726,2]
[346383181,1734929450996,-500.0,0.00019726,2]
[346383182,1734929451005,-749.16,0.00019726,2]
[346383183,1734929451014,-500.0,0.00019726,2]
[346383184,1734929451025,-851.83,0.00019726,2]
[346383185,1734929451034,-500.0,0.00019726,2]
[346383186,1734929451043,-335.27186232,0.00019726,2]
[346383187,1734929451053,-500.0,0.00019726,2]
[346383188,1734929451065,-824.03,0.00019726,2]
[346383189,1734929451075,-500.0,0.00019726,2]
[346383190,1734929451084,-500.0,0.00019726,2]
[346383191,1734929451093,-500.0,0.00019726,2]
[346383192,1734929451103,-903.48,0.00019726,2]
[346383193,1734929451112,-500.0,0.00019726,2]
[346383194,1734929451121,-547.39164841,0.00019726,2]
[346383195,1734929451130,-500.0,0.00019726,2]
[346383196,1734929451139,-500.0,0.00019726,2]
[346383197,1734929451148,-500.0,0.00019726,2]
[346383198,1734929451157,-500.0,0.00019726,2]
[346383199,1734929451166,-500.0,0.00019726,2]
[346383200,1734929451175,-500.0,0.00019726,2]
[346383201,1734929451184,-500.0,0.00019726,2]
[346383202,1734929451193,-573.73,0.00019726,2]
[346383203,1734929451202,-500.0,0.00019726,2]
[346383204,1734929451211,-521.16371481,0.00019726,2]
[346383205,1734929451220,-500.0,0.00019726,2]
[346383206,1734929451229,-500.0,0.00019726,2]
[346383207,1734929451238,-500.0,0.00019726,2]
[346383208,1734929451247,-500.0,0.00019726,2]
[346383209,1734929451256,-562.42,0.00019726,2]
[346383210,1734929451265,-718.8,0.00019726,2]
[346383211,1734929451274,-500.0,0.00019726,2]
[346383212,1734929451283,-500.0,0.00019726,2]
[346383213,1734929451293,-500.0,0.00019726,2]
[346383214,1734929451302,-500.0,0.00019726,2]
[346383215,1734929451313,-500.0,0.00019726,2]
[346383216,1734929451324,-500.0,0.00019726,2]
[346383217,1734929451333,-515.78,0.00019726,2]
[346383218,1734929451342,-500.0,0.00019726,2]
[346383219,1734929451351,-500.0,0.00019726,2]
[346383220,1734929451360,-500.0,0.00019726,2]
[346383221,1734929451369,-500.0,0.00019726,2]
[346383222,1734929451378,-500.0,0.00019726,2]
[346383223,1734929451386,-1197.99,0.00019726,2]
[346383224,1734929451395,-500.0,0.00019726,2]
[346383225,1734929451404,-1139.45,0.00019726,2]
[346383226,1734929451413,-500.0,0.00019726,2]
[346383227,1734929451423,-500.0,0.00019726,2]
[346383228,1734929451433,-1130.05,0.00019726,2]
[346383229,1734929451442,-500.0,0.00019726,2]
[346383230,1734929451451,-500.0,0.00019726,2]
[346383231,1734929451460,-511.01677945,0.00019726,2]
[346383232,1734929451469,-500.0,0.00019726,2]
[346383233,1734929451479,-491.33,0.00019726,2]
[346383234,1734929451489,-500.0,0.00019726,2]
[346383235,1734929451498,-500.0,0.00019726,2]
[346383236,1734929451507,-963.53,0.00019726,2]
[346383237,1734929451517,-764.61,0.00019726,2]
[346383238,1734929451526,-500.0,0.00019726,2]
[346383239,1734929451536,-500.0,0.00019726,2]
[346383240,1734929451545,-500.0,0.00019726,2]
[346383241,1734929451555,-500.0,0.00019726,2]
[346383242,1734929451567,-500.0,0.00019726,2]
[346383243,1734929451577,-500.0,0.00019726,2]
[346383244,1734929451587,-783.61,0.00019726,2]
[346383245,1734929451596,-500.0,0.00019726,2]
[346383246,1734929451606,-189.44093498,0.00019726,2]
[346383247,1734929451615,-500.0,0.00019726,2]
[346383248,1734929451624,-642.85,0.00019726,2]
[346383249,1734929451633,-1157.69,0.00019726,2]
[346383250,1734929451642,-500.0,0.00019726,2]
[346383251,1734929451651,-500.0,0.00019726,2]
[346383252,1734929451661,-500.0,0.00019726,2]
[346383253,1734929451670,-500.0,0.00019726,2]
[346383254,1734929451679,-500.0,0.00019726,2]
[346383255,1734929451688,-585.46,0.00019726,2]
[346383256,1734929451698,-815.9,0.00019726,2]
[346383257,1734929451707,-1203.71,0.00019726,2]
[346383258,1734929451717,-500.0,0.00019726,2]
[346383259,1734929451727,-500.0,0.00019726,2]
[346383260,1734929451736,-500.0,0.00019726,2]
[346383261,1734929451746,-500.0,0.00019726,2]
[346383262,1734929451755,-500.0,0.00019726,2]
[346383263,1734929451765,-500.0,0.00019726,2]
[346383264,1734929451775,-500.0,0.00019726,2]
[346383265,1734929451785,-1038.73,0.00019726,2]
[346383266,1734929451795,-500.0,0.00019726,2]
[346383267,1734929451804,-500.0,0.00019726,2]
[346383268,1734929451815,-500.0,0.00019726,2]
[346383269,1734929451825,-500.0,0.00019726,2]
[346383270,1734929451835,-1727.26,0.00019726,2]
[346383271,1734929451844,-500.0,0.00019726,2]
[346383272,1734929451854,-500.0,0.00019726,2]
[346383273,1734929451863,-500.0,0.00019726,2]
[346383274,1734929451872,-500.0,0.00019726,2]
[346383275,1734929451882,-500.0,0.00019726,2]
[346383276,1734929451891,-551.8958751,0.00019726,2]
[346383277,1734929451901,-500.0,0.00019726,2]
[346383278,1734929451911,-500.0,0.00019726,2]
[346383279,1734929451920,-1139.97,0.00019726,2]
[346383280,1734929451930,-500.0,0.00019726,2]
[346383281,1734929451940,-500.0,0.00019726,2]
[346383282,1734929451949,-508.46654733,0.00019726,2]
[346383283,1734929451959,-500.0,0.00019726,2]
[346383284,1734929451968,-500.0,0.00019726,2]
[346383285,1734929451983,-1060.45,0.00019726,2]
[346383286,1734929451992,-500.0,0.00019726,2]
[346383287,1734929452002,-500.0,0.00019726,2]
[346383288,1734929452011,-500.0,0.00019726,2]
[346383289,1734929452022,-632.02,0.00019726,2]
[346383290,1734929452032,-511.16122439,0.00019726,2]
[346383291,1734929452041,-500.0,0.00019726,2]
[346383292,1734929452053,-574.00231945,0.00019726,2]
[346383293,1734929452063,-500.0,0.00019726,2]
[346383294,1734929452073,-500.0,0.00019726,2]
[346383295,1734929452082,-500.0,0.00019726,2]
[346383296,1734929452091,-500.0,0.00019726,2]
[346383297,1734929452101,-989.01,0.00019726,2]
[346383298,1734929452110,-500.0,0.00019726,2]
[346383299,1734929452119,-500.0,0.00019726,2]
[346383300,1734929452128,-691.46,0.00019726,2]
[346383301,1734929452137,-500.0,0.00019726,2]
[346383302,1734929452146,-315.99,0.00019726,2]
[346383303,1734929452155,-500.0,0.00019726,2]
[346383304,1734929452165,-500.0,0.00019726,2]
[346383305,1734929452174,-500.0,0.00019726,2]
[346383306,1734929452183,-966.9,0.00019726,2]
[346383307,1734929452192,-814.53,0.00019726,2]
[346383308,1734929452201,-11528.1,0.00019726,2]
[346383309,1734929452211,-500.0,0.00019726,2]
[346383310,1734929452219,-871.9,0.00019726,2]
[346383311,1734929452229,-1404.17,0.00019726,2]
[346383312,1734929452238,-500.0,0.00019726,2]
[346383313,1734929452248,-500.0,0.00019726,2]
[346383314,1734929452256,-500.0,0.00019726,2]
[346383315,1734929452266,-801.99,0.00019726,2]
[346383316,1734929452275,-1039.01,0.00019726,2]
[346383317,1734929452284,-500.0,0.00019726,2]
[346383318,1734929452294,-2016.72,0.00019726,2]
[346383319,1734929452303,-507.55,0.00019726,2]
[346383320,1734929452315,-500.0,0.00019726,2]
[346383321,1734929452327,-1516.68,0.00019726,2]
[346383322,1734929452336,-232.7,0.00019726,2]
[346383323,1734929452345,-931.12,0.00019726,2]
[346383324,1734929452355,-908.18,0.00019726,2]
[346383325,1734929452364,-500.0,0.00019726,2]
[346383326,1734929452373,-500.0,0.00019726,2]
[346383327,1734929452383,-838.97,0.00019726,2]
[346383328,1734929452392,-500.0,0.00019726,2]
[346383329,1734929452402,-1243.14,0.00019726,2]
[346383330,1734929452411,-500.0,0.00019726,2]
[346383331,1734929452421,-500.0,0.00019726,2]
[346383332,1734929452430,-1176.04,0.00019726,2]
[346383333,1734929452440,-500.0,0.00019726,2]
[346383334,1734929452449,-1233.89,0.00019726,2]
[346383335,1734929452459,-954.88,0.00019726,2]
[346383336,1734929452468,-500.0,0.00019726,2]
[346383337,1734929452478,-1481.98,0.00019726,2]
[346383338,1734929452487,-500.0,0.00019726,2]
[346383339,1734929452497,-500.0,0.00019726,2]
[346383340,1734929452506,-3928.99,0.00019726,2]
[346383341,1734929452516,-386.23461311,0.00019726,2]
[346383342,1734929452525,-500.0,0.00019726,2]
[346383343,1734929452534,-2133.73,0.00019726,2]
[346383344,1734929452544,-500.0,0.00019726,2]
[346383345,1734929452553,-915.54,0.00019726,2]
[346383346,1734929452562,-500.0,0.00019726,2]
[346383347,1734929452575,-847.06,0.00019726,2]
[346383348,1734929452584,-500.0,0.00019726,2]
[346383349,1734929452593,-500.0,0.00019726,2]
[346383350,1734929452603,-500.0,0.00019726,2]
[346383351,1734929452613,-508.39645071,0.00019726,2]
[346383352,1734929452623,-2413.1,0.00019726,2]
[346383353,1734929452632,-500.0,0.00019726,2]
[346383354,1734929452641,-761.48,0.00019726,2]
[346383355,1734929452651,-500.0,0.00019726,2]
[346383356,1734929452660,-536.65,0.00019726,2]
[346383357,1734929452670,-1033.08,0.00019726,2]
[346383358,1734929452678,-500.0,0.00019726,2]
[346383359,1734929452688,-500.0,0.00019726,2]
[346383360,1734929452698,-500.0,0.00019726,2]
[346383361,1734929452707,-886.85,0.00019726,2]
[346383362,1734929452716,-2586.76,0.00019726,2]
[346383363,1734929452725,-1333.19,0.00019726,2]
[346383364,1734929452734,-1540.98,0.00019726,2]
[346383365,1734929452743,-500.0,0.00019726,2]
[346383366,1734929452752,-11710.27,0.00019726,2]
[346383367,1734929452761,-703.39,0.00019726,2]
[346383368,1734929452770,-500.0,0.00019726,2]
[346383369,1734929452780,-500.0,0.00019726,2]
[346383370,1734929452789,-2312.73,0.00019726,2]
[346383371,1734929452798,-684.95,0.00019726,2]
[346383372,1734929452807,-1220.19,0.00019726,2]
[346383373,1734929452818,-2642.17,0.00019726,2]
[346383374,1734929452827,-500.0,0.00019726,2]
[346383375,1734929452837,-500.0,0.00019726,2]
[346383376,1734929452847,-570.0,0.00019726,2]
[346383377,1734929452856,-1691.26,0.00019726,2]
[346383378,1734929452865,-500.0,0.00019726,2]
[346383379,1734929452875,-1254.06,0.00019726,2]
[346383380,1734929452884,-13474.63,0.00019726,2]
[346383381,1734929452893,-1278.47,0.00019726,2]
[346383382,1734929452902,-165.78866941,0.00019726,2]
[346383383,1734929452911,-1944.25,0.00019726,2]
[346383384,1734929452920,-500.0,0.00019726,2]
[346383385,1734929452930,-1695.21,0.00019726,2]
[346383386,1734929452939,-1306.02,0.00019726,2]
[346383387,1734929452949,-500.0,0.00019726,2]
[346383388,1734929452958,-191.06293545,0.00019726,2]
[346383389,1734929452967,-1192.12,0.00019726,2]
[346383390,1734929452980,-3936.33,0.00019726,2]
[346383391,1734929452990,-500.0,0.00019726,2]
[346383392,1734929452999,-1823.19,0.00019726,2]
[346383393,1734929453009,-1202.55,0.00019726,2]
[346383394,1734929453018,-500.0,0.00019726,2]
[346383395,1734929453028,-3351.22,0.00019726,2]
[346383396,1734929453037,-500.0,0.00019726,2]
[346383397,1734929453047,-1778.84,0.00019726,2]
[346383398,1734929453057,-500.0,0.00019726,2]
[346383399,1734929453067,-3079.52,0.00019726,2]
[346383400,1734929453076,-468.61710504,0.00019726,2]
[346383401,1734929453087,-1104.84,0.00019726,2]
[346383402,1734929453096,-1128.95,0.00019726,2]
[346383403,1734929453106,-500.0,0.00019726,2]
[346383404,1734929453115,-500.0,0.00019726,2]
[346383405,1734929453124,-500.0,0.00019726,2]
[346383406,1734929453134,-1759.58,0.00019726,2]
[346383407,1734929453144,-1074.94,0.00019726,2]
[346383408,1734929453153,-1255.65,0.00019726,2]
[346383409,1734929453162,-977.24,0.00019726,2]
[346383410,1734929453172,-500.0,0.00019726,2]
[346383411,1734929453181,-2395.77,0.00019726,2]
[346383412,1734929453191,-2107.79,0.00019726,2]
[346383413,1734929453200,-1712.79,0.00019726,2]
[346383414,1734929453209,-500.0,0.00019726,2]
[346383415,1734929453219,-500.0,0.00019726,2]
[346383416,1734929453228,-2179.08,0.00019726,2]
[346383417,1734929453237,-5815.15,0.00019726,2]
[346383418,1734929453246,-667.05,0.00019726,2]
[346383419,1734929453255,-1941.99,0.00019726,2]
[346383420,1734929453265,-4646.63,0.00019726,2]
[346383421,1734929453274,-3559.77,0.00019726,2]
[346383422,1734929453283,-500.0,0.00019726,2]
[346383423,1734929453293,-500.0,0.00019726,2]
[346383424,1734929453303,-507.5,0.00019726,2]
[346383425,1734929453314,-1514.38,0.00019726,2]
[346383426,1734929453325,-1946.88,0.00019726,2]
[346383427,1734929453335,-8984.96,0.00019726,2]
[346383428,1734929453344,-939.19,0.00019726,2]
[346383429,1734929453353,-29170.43,0.00019726,2]
[346383430,1734929453363,-500.0,0.00019726,2]
[346383431,1734929453372,-1994.41,0.00019726,2]
[346383432,1734929453382,-500.0,0.00019726,2]
[346383433,1734929453391,-6523.15,0.00019726,2]
[346383434,1734929453401,-10867.82,0.00019726,2]
[346383435,1734929453557,-1645.14,0.00019726,2]
[346383436,1734929453569,-3511.11,0.00019726,2]
[346383437,1734929453579,-500.0,0.00019726,2]
[346383438,1734929453588,-735.02,0.00019726,2]
[346383439,1734929453598,-500.0,0.00019726,2]
[346383440,1734929453607,-500.0,0.00019726,2]
[346383441,1734929453616,-2582.95,0.00019726,2]
[346383442,1734929453625,-5195.96,0.00019726,2]
[346383443,1734929453635,-514.06080919,0.00019726,2]
[346383444,1734929453644,-1628.3,0.00019726,2]